bitfinex-derivatives/quotes_ETHF0:USTF0_20251225
["timestamp","ask_amount","ask_price","bid_price","bid_amount"]
[1766643266910,3.404,2938.8,2937.9,9.375]
[1766643267209,1.0253249,2938.7,2937.9,9.375]
[1766643267412,3.404,2938.8,2937.9,9.375]
[1766643267715,1.02532181,2938.7,2937.9,9.375]
[1766643267909,3.404,2938.8,2937.9,9.375]
[1766643268113,1.02532178,2938.7,2937.9,9.375]
[1766643268306,3.404,2938.8,2937.9,9.375]
[1766643268502,1.0253208,2938.7,2937.9,9.375]
[1766643268704,3.404,2938.8,2937.9,9.375]
[1766643268906,1.0253208,2938.7,2937.9,9.375]
[1766643269107,3.404,2938.8,2937.9,9.375]
[1766643269303,1.02531987,2938.7,2937.9,9.375]
[1766643269512,3.404,2938.8,2937.9,9.375]
[1766643269812,1.02532184,2938.7,2937.9,9.375]
[1766643270015,3.404,2938.8,2937.9,9.375]
[1766643270316,1.02532184,2938.7,2937.9,9.375]
[1766643270508,3.404,2938.8,2937.9,9.375]
[1766643270708,1.02532411,2938.7,2937.9,9.375]
[1766643271009,3.404,2938.8,2937.9,9.375]
[1766643271308,1.02532276,2938.7,2937.9,9.375]
[1766643271614,3.404,2938.8,2937.9,9.375]
[1766643271815,1.02532944,2938.7,2937.9,9.375]
[1766643272010,3.404,2938.8,2937.9,9.375]
[1766643272316,1.02532887,2938.7,2937.9,9.375]
[1766643272516,3.404,2938.8,2937.9,9.375]
[1766643272716,1.02533868,2938.7,2937.9,9.375]
[1766643272917,3.404,2938.8,2937.9,9.375]
[1766643273111,1.02533892,2938.7,2937.9,9.375]
[1766643273308,3.404,2938.8,2937.9,9.375]
[1766643273514,1.0253462,2938.7,2937.9,9.375]
[1766643273814,3.404,2938.8,2937.9,9.375]
[1766643274015,1.02535101,2938.7,2937.9,9.375]
[1766643274314,3.404,2938.8,2937.9,9.375]
[1766643274508,1.02536581,2938.7,2937.9,9.375]
[1766643274709,3.404,2938.8,2937.9,9.375]
[1766643275009,1.02536581,2938.7,2937.9,9.375]
[1766643275209,3.404,2938.8,2937.9,9.375]
[1766643275412,1.02536581,2938.7,2937.9,9.375]
[1766643275718,3.404,2938.8,2937.9,9.375]
[1766643276018,1.02538407,2938.7,2937.9,9.375]
[1766643276219,3.404,2938.8,2937.9,9.375]
[1766643276418,1.02538407,2938.7,2937.9,9.375]
[1766643276618,3.404,2938.8,2937.9,9.375]
[1766643276819,1.02540322,2938.7,2937.9,9.375]
[1766643277120,3.404,2938.8,2937.9,9.375]
[1766643277322,1.02552298,2938.7,2937.9,9.375]
[1766643277524,3.404,2938.8,2937.9,9.375]
[1766643277722,1.02555174,2938.7,2937.9,9.375]
[1766643278022,3.404,2938.6,2937.9,9.375]
[1766643281226,3.404,2938.6,2937.8,0.86884679]
[1766643281425,3.404,2938.6,2937.9,3.404]
[1766643285027,0.87286999,2939.0,2937.9,3.404]
[1766643285324,4.42991994,2938.9,2937.9,3.404]
[1766643285522,1.02591994,2938.8,2937.9,3.404]
[1766643285827,1.02591994,2938.7,2937.9,3.404]
[1766643286028,3.404,2938.9,2937.9,3.404]
[1766643286224,1.02590966,2938.8,2937.9,3.404]
[1766643286423,1.02590966,2938.7,2937.9,3.404]
[1766643286636,3.404,2938.9,2937.9,3.404]
[1766643286929,1.02591353,2938.8,2937.9,3.404]
[1766643287130,1.02591353,2938.7,2937.9,3.404]
[1766643287430,3.404,2938.9,2937.9,3.404]
[1766643287630,1.02589727,2938.8,2937.9,3.404]
[1766643287836,1.02589727,2938.7,2937.9,3.404]
[1766643288138,3.404,2938.9,2937.9,3.404]
[1766643288338,1.02589657,2938.8,2937.9,3.404]
[1766643288541,1.02589657,2938.7,2937.9,3.404]
[1766643288731,3.404,2938.9,2937.9,3.404]
[1766643288933,1.02587885,2938.8,2937.9,3.404]
[1766643289135,1.02587885,2938.7,2937.9,3.404]
[1766643289336,3.404,2938.9,2937.9,3.404]
[1766643289536,1.02581065,2938.8,2937.9,3.404]
[1766643289736,1.02581065,2938.7,2937.9,3.404]
[1766643289939,3.404,2938.9,2937.9,3.404]
[1766643290140,1.02581119,2938.8,2937.9,3.404]
[1766643290338,1.02581119,2938.7,2937.9,3.404]
[1766643290538,3.404,2938.9,2937.9,3.404]
[1766643290738,1.02579011,2938.8,2937.9,3.404]
[1766643290938,1.02579011,2938.7,2937.9,3.404]
[1766643291134,3.404,2938.9,2937.9,3.404]
[1766643291336,1.02579204,2938.8,2937.9,3.404]
[1766643291636,1.02579204,2938.7,2937.9,3.404]
[1766643291942,3.404,2938.9,2937.9,3.404]
[1766643292140,1.0257703,2938.8,2937.9,3.404]
[1766643292343,1.0257703,2938.7,2937.9,3.404]
[1766643292545,3.404,2938.9,2937.9,3.404]
[1766643292841,1.02575623,2938.8,2937.9,3.404]
[1766643293034,1.02575623,2938.7,2937.9,3.404]
[1766643293235,3.404,2938.9,2937.9,3.404]
[1766643293440,1.02574849,2938.8,2937.9,3.404]
[1766643293739,1.02574849,2938.7,2937.9,3.404]
[1766643293939,3.404,2938.9,2937.9,3.404]
[1766643294138,1.02575043,2938.8,2937.9,3.404]
[1766643294341,1.02575043,2938.7,2937.9,3.404]
[1766643294542,3.404,2938.7,2937.9,3.404]
[1766643296848,3.1055,2938.7,2937.9,3.404]
[1766643297042,2.608,2938.7,2937.9,3.404]
[1766643302149,0.87286999,2939.0,2937.9,3.404]
[1766643302347,4.42906779,2938.9,2937.9,3.404]
[1766643302551,3.404,2938.9,2937.9,3.404]
[1766643302942,2.4289,2938.9,2937.9,3.404]
[1766643303145,1.9115,2938.9,2937.9,3.404]
[1766643303344,0.99137153,2939.0,2937.9,3.404]
[1766643304642,0.89187153,2939.0,2937.9,3.404]
[1766643304846,0.31477153,2939.0,2937.9,3.404]
[1766643305049,0.25507153,2939.0,2937.9,3.404]
[1766643306554,0.10503237,2939.3,2937.9,3.57432]
[1766643306555,0.8768192,2939.2,2937.9,3.57432]
[1766643307657,0.8768192,2939.2,2938.0,3.54486291]
[1766643307858,0.8768192,2939.2,2938.1,8.511]
[1766643308059,0.8768192,2939.2,2938.2,4.23303098]
[1766643308365,0.7176192,2939.2,2938.2,4.23303098]
[1766643308555,0.3992192,2939.2,2938.2,4.23303098]
[1766643308750,0.2997192,2939.2,2938.2,4.23303098]
[1766643309054,0.27767683,2939.2,2938.2,4.23303098]
[1766643309260,0.27767683,2939.2,2938.2,4.40333098]
[1766643310259,0.27767683,2939.2,2938.3,5.968]
[1766643310455,0.00510352,2939.3,2938.3,5.968]
[1766643310654,0.0785,2940.1,2938.3,5.968]
[1766643310860,0.99579602,2940.1,2938.6,0.17028]
[1766643311050,0.99579602,2940.1,2938.7,3.404]
[1766643311246,3.404,2940.3,2938.8,5.968]
[1766643311247,3.4889,2940.3,2938.8,5.968]
[1766643311451,1.00678175,2940.1,2938.8,14.478]
[1766643311650,1.00678175,2940.1,2939.2,0.00510352]
[1766643311847,0.00510352,2939.7,2939.3,3.404]
[1766643312754,3.404,2940.3,2939.3,3.404]
[1766643313061,4.41078175,2940.3,2939.3,3.404]
[1766643313260,3.404,2940.3,2939.3,3.404]
[1766643313463,4.40083262,2940.3,2939.3,3.404]
[1766643313853,0.00510352,2940.1,2939.3,3.404]
[1766643319364,0.00510352,2940.1,2939.4,5.293]
[1766643320656,0.00510352,2940.1,2939.2,0.00510352]
[1766643320858,0.00510352,2940.1,2939.3,3.43]
[1766643321160,3.403,2940.0,2939.2,0.00510352]
[1766643321560,3.403,2940.0,2937.2,6.10341101]
[1766643321861,3.403,2940.0,2938.3,3.941]
[1766643322060,3.403,2940.0,2937.5,0.07482237]
[1766643322259,3.403,2940.0,2937.9,0.25542]
[1766643322457,3.403,2940.0,2938.0,12.123]
[1766643322659,3.403,2940.0,2938.7,0.00510352]
[1766643328473,1.01661592,2939.9,2938.7,0.00510352]
[1766643328669,4.503,2939.8,2938.7,0.00510352]
[1766643328874,3.403,2939.7,2938.7,0.00510352]
[1766643329070,4.50194749,2939.7,2938.7,0.00510352]
[1766643344280,4.50194749,2939.7,2938.8,3.403]
[1766643344973,4.50194749,2939.7,2938.9,3.403]
[1766643345174,4.50194749,2939.7,2938.7,0.00510352]
[1766643345379,4.50194749,2939.7,2938.8,3.403]
[1766643348580,0.17530352,2940.1,2938.8,3.403]
[1766643348783,4.42262455,2940.0,2938.8,3.403]
[1766643348983,3.403,2940.0,2938.8,3.403]
[1766643349388,1.02007411,2939.9,2938.8,3.403]
[1766643349584,3.403,2940.0,2938.8,3.403]
[1766643349786,1.02007385,2939.9,2938.8,3.403]
[1766643350090,3.403,2940.0,2938.8,3.403]
[1766643350380,1.02007386,2939.9,2938.8,3.403]
[1766643350586,4.65109089,2940.0,2938.7,0.09020352]
[1766643350887,1.02067835,2939.9,2938.8,3.403]
[1766643351086,4.62701871,2940.0,2938.8,3.403]
[1766643351289,1.0206784,2939.9,2938.7,0.00510352]
[1766643351480,1.0206784,2939.8,2938.7,0.00510352]
[1766643351686,4.54191871,2940.0,2938.8,3.403]
[1766643351887,1.02104397,2939.9,2938.8,3.403]
[1766643352082,1.02104397,2939.8,2938.8,3.403]
[1766643352283,4.54524688,2940.0,2938.7,0.09020352]
[1766643352484,1.02099576,2939.9,2938.8,3.403]
[1766643352685,3.403,2940.0,2938.8,3.403]
[1766643352987,1.02099583,2939.9,2938.9,3.403]
[1766643353188,4.54524688,2940.0,2938.9,3.403]
[1766643353383,1.0209593,2939.9,2939.0,3.403]
[1766643353587,4.54524688,2940.0,2939.0,3.403]
[1766643353786,1.02095954,2939.9,2939.0,3.403]
[1766643353986,3.403,2940.0,2939.0,3.403]
[1766643354185,1.02095929,2939.9,2939.0,3.403]
[1766643354387,4.64220415,2940.0,2939.0,3.403]
[1766643354587,1.02093301,2939.9,2939.0,3.403]
[1766643354786,4.57863021,2940.0,2939.0,3.403]
[1766643354988,1.02093363,2939.9,2939.0,3.403]
[1766643355184,3.4881,2940.0,2939.0,3.403]
[1766643355385,1.02092001,2939.9,2939.0,3.403]
[1766643355584,4.57863021,2940.0,2939.0,3.403]
[1766643355783,0.17530352,2940.1,2939.0,3.403]
[1766643355784,1.02092001,2939.9,2939.0,3.403]
[1766643355984,0.00510352,2940.1,2938.8,0.9501864]
[1766643356293,0.00510352,2940.1,2938.9,8.645]
[1766643356490,3.403,2940.0,2938.9,8.645]
[1766643357092,3.403,2940.0,2938.7,0.00510352]
[1766643357293,1.02057491,2939.9,2938.8,3.403]
[1766643357494,1.02057491,2939.8,2938.8,3.403]
[1766643357694,4.42357491,2939.7,2938.8,3.403]
[1766643357995,1.02057491,2939.6,2938.8,3.403]
[1766643358190,3.403,2939.7,2938.8,3.403]
[1766643358389,1.02041993,2939.6,2938.8,3.403]
[1766643358590,3.403,2939.7,2938.8,3.403]
[1766643358894,1.02041993,2939.6,2938.8,3.403]
[1766643359196,3.403,2939.6,2938.8,3.403]
[1766643372602,1.14451709,2940.0,2938.8,3.403]
[1766643372808,1.0206755,2939.9,2938.8,3.403]
[1766643373009,4.54751709,2940.0,2938.8,3.403]
[1766643373204,1.02066855,2939.9,2938.8,3.403]
[1766643373405,4.54751709,2940.0,2938.8,3.403]
[1766643373608,1.02067707,2939.9,2938.8,3.403]
[1766643373908,4.54751709,2940.0,2938.8,3.403]
[1766643374105,1.02067707,2939.9,2938.8,3.403]
[1766643374306,4.54751709,2940.0,2938.8,3.403]
[1766643374507,1.02068597,2939.9,2938.8,3.403]
[1766643374711,4.54751709,2940.0,2938.8,3.403]
[1766643374909,1.020686,2939.9,2938.8,3.403]
[1766643375209,4.54751709,2940.0,2938.8,3.403]
[1766643375411,1.02070775,2939.9,2938.8,3.403]
[1766643375708,4.54751709,2940.0,2938.8,3.403]
[1766643375904,1.02070797,2939.9,2938.8,3.403]
[1766643376109,4.54751709,2940.0,2938.8,3.403]
[1766643376309,1.02071796,2939.9,2938.8,3.403]
[1766643376503,1.02071796,2939.8,2938.8,3.403]
[1766643376811,3.403,2939.7,2938.8,3.403]
[1766643378914,1.14451709,2940.0,2938.8,3.403]
[1766643379115,4.42381237,2939.9,2938.8,3.403]
[1766643379309,4.54751709,2940.0,2938.8,3.403]
[1766643379612,1.02085551,2939.9,2938.8,3.403]
[1766643379812,4.54751709,2940.0,2938.8,3.403]
[1766643380011,1.02085326,2939.9,2938.8,3.403]
[1766643380212,4.54751709,2940.0,2938.8,3.403]
[1766643380418,1.02080872,2939.9,2938.8,3.403]
[1766643380611,4.54751709,2940.0,2938.8,3.403]
[1766643388724,0.00510352,2940.1,2938.8,4.40028547]
[1766643389229,0.00510352,2940.1,2938.8,3.403]
[1766643390426,0.00510352,2940.1,2938.8,4.41850196]
[1766643391022,0.00510352,2940.1,2938.9,5.964]
[1766643391219,0.00510352,2940.1,2938.9,9.367]
[1766643393416,3.403,2940.0,2938.9,9.367]
[1766643401428,3.40810352,2940.1,2938.9,9.367]
[1766643407728,0.00510352,2940.1,2938.9,9.367]
[1766643407934,0.00510352,2940.1,2939.0,0.17025]
[1766643408233,0.00510352,2940.1,2939.0,3.77307094]
[1766643414846,0.00510352,2940.1,2939.0,0.17025]
[1766643415349,0.00510352,2940.1,2939.1,9.365]
[1766643416442,3.40710352,2940.1,2938.8,1.07007692]
[1766643416636,3.40710352,2940.1,2938.9,9.364]
[1766643421656,0.00510352,2940.1,2938.9,9.364]
[1766643421854,3.40810352,2940.1,2938.9,9.364]
[1766643425855,0.00510352,2940.1,2938.9,9.364]
[1766643426153,3.40810352,2940.1,2938.9,9.364]
[1766643474498,3.40810352,2940.1,2938.8,1.07007692]
[1766643474700,3.40810352,2940.1,2938.9,17.87]
[1766643488102,3.40810352,2940.1,2938.8,0.96632112]
[1766643488610,3.40810352,2940.1,2938.9,4.489]
[1766643544845,3.40810352,2940.1,2939.0,8.507]
[1766643549649,3.40810352,2940.1,2939.1,3.403]
[1766643554452,0.00510352,2940.1,2939.1,3.403]
[1766643580582,0.00510352,2940.1,2939.2,5.957]
[1766643584486,0.00510352,2940.1,2939.3,3.403]
[1766643591096,0.00510352,2940.1,2939.2,0.83852687]
[1766643591294,1.02277737,2940.0,2939.3,9.359]
[1766643591497,0.00510352,2940.1,2939.3,9.359]
[1766643591801,1.022503,2940.0,2939.3,9.359]
[1766643592096,0.00510352,2940.1,2939.3,9.359]
[1766643592296,1.02250574,2940.0,2939.3,9.359]
[1766643592597,0.00510352,2940.1,2939.3,9.359]
[1766643592795,1.02234535,2940.0,2939.3,9.359]
[1766643592996,0.00510352,2940.1,2939.3,9.359]
[1766643593187,1.0223453,2940.0,2939.3,9.359]
[1766643593389,0.00510352,2940.1,2939.2,0.83852687]
[1766643593696,4.42523194,2940.0,2939.3,5.422]
[1766643593896,3.403,2940.0,2939.3,5.422]
[1766643599497,3.403,2940.0,2939.2,0.83852687]
[1766643599698,1.01982128,2939.9,2939.2,3.403]
[1766643599996,3.403,2940.0,2939.2,3.403]
[1766643600201,1.01980469,2939.9,2939.2,3.403]
[1766643600499,1.01972837,2939.8,2939.0,3.403]
[1766643600694,4.42272837,2939.7,2939.0,3.403]
[1766643601001,3.403,2939.7,2939.0,3.403]
[1766643601192,4.30927237,2939.7,2939.0,3.403]
[1766643609009,0.00510352,2940.1,2939.0,3.403]
[1766643609305,4.42138485,2940.0,2939.1,9.359]
[1766643609497,3.403,2940.0,2939.1,9.359]
[1766643612308,0.91275015,2940.1,2939.1,9.359]
[1766643612506,4.31575015,2940.1,2939.1,9.359]
[1766643624127,0.91275015,2940.1,2939.1,9.359]
[1766643625522,0.97886489,2940.1,2939.1,9.359]
[1766643625723,11.39316953,2940.3,2939.1,9.359]
[1766643625910,0.97363256,2940.1,2939.1,9.359]
[1766643626114,11.39316953,2940.3,2939.1,9.359]
[1766643626314,0.97363256,2940.1,2939.1,9.359]
[1766643626622,0.00510352,2939.9,2939.1,9.359]
[1766643631725,0.00329054,2940.6,2939.1,9.359]
[1766643632027,1.02265612,2940.5,2939.1,10.1830035]
[1766643632226,0.98688958,2940.6,2939.1,10.1830035]
[1766643632428,1.02266745,2940.5,2939.1,10.1830035]
[1766643632618,0.98688958,2940.6,2939.1,10.1830035]
[1766643632819,0.00510352,2940.1,2939.1,10.1830035]
[1766643633430,0.00510352,2940.1,2939.1,10.15647337]
[1766643634528,0.00510352,2940.1,2939.1,9.359]
[1766643634731,0.00510352,2940.1,2939.1,10.18175513]
[1766643635327,0.00510352,2940.1,2939.1,10.18184519]
[1766643635928,0.00510352,2940.1,2939.1,9.359]
[1766643637527,0.00510352,2940.1,2939.2,8.507]
[1766643639731,0.00510352,2940.1,2939.3,5.958]
[1766643639922,0.00510352,2940.1,2939.3,9.361]
[1766643653140,3.40810352,2940.1,2939.0,0.8069498]
[1766643653444,3.40810352,2940.1,2939.1,9.368]
[1766643654335,4.37202343,2940.1,2939.1,9.368]
[1766643656040,4.36646937,2940.1,2939.1,10.17533524]
[1766643657244,4.37519521,2940.1,2939.1,10.16342125]
[1766643658745,4.37417018,2940.1,2939.1,10.1823461]
[1766643659347,3.40810352,2940.1,2939.1,9.368]
[1766643659845,4.37417018,2940.1,2939.1,10.1823461]
[1766643660641,0.97117018,2940.1,2939.1,9.368]
[1766643673467,0.97117018,2940.1,2939.2,8.507]
[1766643678273,0.97117018,2940.1,2939.3,3.403]
[1766643678476,0.97117018,2940.1,2939.4,5.966]
[1766643694690,0.97117018,2940.1,2939.5,3.402]
[1766643694888,0.00510352,2940.1,2939.5,3.402]
[1766643695083,0.87270537,2940.4,2939.5,3.402]
[1766643695395,0.87255342,2940.5,2939.5,3.402]
[1766643696091,0.00510352,2940.3,2939.5,3.402]
[1766643699487,0.89514575,2940.6,2939.5,3.402]
[1766643700483,0.00510352,2940.3,2939.5,3.402]
[1766643701796,0.89514575,2940.6,2939.5,3.402]
[1766643703092,0.00340232,2940.3,2939.5,3.402]
[1766643714802,0.00340232,2940.3,2939.4,0.92242715]
[1766643714994,0.00340232,2940.3,2939.5,13.75]
[1766643719603,0.00340232,2940.3,2939.4,0.92242715]
[1766643719903,0.00340232,2940.3,2939.5,13.448]
[1766643722906,0.00340232,2940.3,2939.6,17.871]
[1766643723298,0.00340232,2940.3,2939.7,9.366]
[1766643723504,0.00340232,2940.3,2939.8,9.366]
[1766643733516,0.89514575,2940.6,2939.8,9.366]
[1766643742636,0.89514575,2940.6,2939.7,0.0030521]
[1766643742843,0.89514575,2940.6,2939.9,5.971]
[1766643748143,0.89514575,2940.6,2940.0,3.402]
[1766643750846,0.89514575,2940.6,2939.7,0.0030521]
[1766643751034,0.89514575,2940.6,2939.8,9.373]
[1766643759949,0.89514575,2940.6,2939.9,3.402]
[1766643761449,0.89514575,2940.6,2939.7,0.0030521]
[1766643761644,0.89514575,2940.6,2939.8,9.374]
[1766643762453,0.89514575,2940.6,2939.7,0.0030521]
[1766643762648,0.89514575,2940.6,2939.8,9.374]
[1766643762952,0.00329054,2940.6,2939.9,3.938]
[1766643767254,0.00329054,2940.6,2939.8,0.78403165]
[1766643767442,0.00329054,2940.6,2939.9,9.374]
[1766643777759,0.00329054,2940.6,2939.8,0.78403165]
[1766643777947,0.00329054,2940.6,2939.9,9.373]
[1766643779556,0.00329054,2940.6,2939.8,0.78403165]
[1766643779953,0.00329054,2940.6,2939.9,4.943]
[1766643796969,0.00329054,2940.6,2940.0,3.402]
[1766643798467,0.00329054,2940.6,2939.8,0.78403165]
[1766643798773,0.00329054,2940.6,2939.9,3.402]
[1766643802573,0.00329054,2940.6,2939.7,0.0030521]
[1766643802774,0.00329054,2940.6,2939.8,3.402]
[1766643811078,3.402,2940.7,2939.8,3.402]
[1766643811277,3.0836,2940.7,2939.8,3.402]
[1766643811975,3.08603327,2940.7,2939.8,3.402]
[1766643838200,1.02238961,2940.6,2939.8,3.402]
[1766643838398,3.08603327,2940.7,2939.8,3.402]
[1766643839291,1.02247957,2940.6,2939.8,3.402]
[1766643839491,3.08603327,2940.7,2939.8,3.402]
[1766643839688,1.02248404,2940.6,2939.8,3.402]
[1766643839892,3.08603327,2940.7,2939.8,3.402]
[1766643840101,1.022484,2940.6,2939.8,3.402]
[1766643840397,3.08603327,2940.7,2939.8,3.402]
[1766643840602,1.02266291,2940.6,2939.8,3.402]
[1766643840898,0.00243327,2940.7,2939.8,3.402]
[1766643841096,1.02266391,2940.6,2939.8,4.22841052]
[1766643841296,0.00243327,2940.7,2939.8,4.22841052]
[1766643841501,1.02266271,2940.6,2939.8,4.22841052]
[1766643841699,0.00243327,2940.7,2939.8,4.22841052]
[1766643841895,0.86346043,2940.6,2939.8,4.22841052]
[1766643842101,0.00243327,2940.7,2939.8,4.22841052]
[1766643842695,3.402,2941.0,2939.8,4.22841052]
[1766643843789,3.40614888,2941.0,2939.8,4.22841052]
[1766643846604,0.00414888,2941.0,2939.8,4.22841052]
[1766643847393,0.00414888,2941.0,2939.9,5.71]
[1766643847593,0.00414888,2941.0,2940.0,3.402]
[1766643847902,0.00414888,2941.0,2940.2,0.00510352]
[1766643848105,0.00414888,2941.0,2940.3,3.402]
[1766643849706,0.00414888,2941.0,2940.4,9.371]
[1766643859411,0.00414888,2941.0,2940.2,0.00510352]
[1766643859817,0.00414888,2941.0,2940.3,3.402]
[1766643860019,0.00414888,2941.0,2940.2,3.402]
[1766643860714,0.00510352,2940.9,2940.3,0.00510352]
[1766643870832,3.40710352,2940.9,2940.3,0.00510352]
[1766643888250,1.02144523,2940.8,2940.3,0.00510352]
[1766643888449,3.40710352,2940.9,2940.2,3.402]
[1766643888650,1.02144577,2940.8,2940.2,3.402]
[1766643888842,3.40710352,2940.9,2940.2,3.402]
[1766643889042,1.02144577,2940.8,2940.2,3.402]
[1766643889247,3.40710352,2940.9,2940.2,3.402]
[1766643889449,1.02197554,2940.8,2940.3,0.00510352]
[1766643889647,3.40710352,2940.9,2940.3,0.00510352]
[1766643889950,1.02197554,2940.8,2940.3,0.00510352]
[1766643890150,3.40710352,2940.9,2940.3,0.00510352]
[1766643890348,1.02197844,2940.8,2940.3,0.00510352]
[1766643890543,3.40710352,2940.9,2940.3,0.00510352]
[1766643890744,1.02197844,2940.8,2940.3,0.00510352]
[1766643891050,3.40710352,2940.9,2940.3,0.00510352]
[1766643891250,1.02197844,2940.8,2940.3,0.00510352]
[1766643891452,3.40710352,2940.9,2940.3,0.00510352]
[1766643891647,1.02198197,2940.8,2940.3,0.00510352]
[1766643891854,3.40710352,2940.9,2940.3,0.00510352]
[1766643892149,1.02198197,2940.8,2940.3,0.00510352]
[1766643892350,3.40710352,2940.9,2940.3,0.00510352]
[1766643892553,1.02198574,2940.8,2940.3,0.00510352]
[1766643892852,3.40710352,2940.9,2940.2,3.402]
[1766643893050,1.02198574,2940.8,2940.2,3.402]
[1766643893253,3.40710352,2940.9,2940.2,3.402]
[1766643893554,1.02198695,2940.8,2940.2,3.402]
[1766643893745,3.40710352,2940.9,2940.2,3.40710352]
[1766643893950,1.02198251,2940.8,2940.2,3.40710352]
[1766643894148,3.40710352,2940.9,2940.2,3.40710352]
[1766643894346,1.02196534,2940.8,2940.2,3.40710352]
[1766643894547,3.40710352,2940.9,2940.2,3.40710352]
[1766643894747,1.0219653,2940.8,2940.2,3.40710352]
[1766643894949,3.40710352,2940.9,2940.2,3.40710352]
[1766643895248,1.02196565,2940.8,2940.2,3.40710352]
[1766643895449,3.40710352,2940.9,2940.2,3.40710352]
[1766643895646,1.02196782,2940.8,2940.2,3.40710352]
[1766643895847,3.40710352,2940.9,2940.2,3.40710352]
[1766643896056,1.02196532,2940.8,2940.2,3.40710352]
[1766643896354,3.40710352,2940.9,2940.2,3.40710352]
[1766643896557,1.0229416,2940.8,2940.2,3.40710352]
[1766643896756,3.40710352,2940.9,2940.2,3.40710352]
[1766643896956,1.02294198,2940.8,2940.2,3.40710352]
[1766643897157,3.40710352,2940.9,2940.2,3.40710352]
[1766643897360,1.02294309,2940.8,2940.2,3.40710352]
[1766643897658,3.40710352,2940.9,2940.2,3.40710352]
[1766643897956,1.02294309,2940.8,2940.2,3.40710352]
[1766643898151,3.40710352,2940.9,2940.2,3.40710352]
[1766643898451,1.02294423,2940.8,2940.2,3.40710352]
[1766643898651,3.40710352,2940.9,2940.2,3.40710352]
[1766643898850,1.02294423,2940.8,2940.2,3.40710352]
[1766643899052,3.40710352,2940.9,2940.2,3.40710352]
[1766643899260,1.02294423,2940.8,2940.2,3.40710352]
[1766643899457,3.40710352,2940.9,2940.2,3.40710352]
[1766643899659,1.02294587,2940.8,2940.2,3.40710352]
[1766643899860,3.40710352,2940.9,2940.2,3.40710352]
[1766643900065,1.02294587,2940.8,2940.2,3.40710352]
[1766643900358,3.40710352,2940.9,2940.2,3.40710352]
[1766643900560,1.02294441,2940.8,2940.2,3.40710352]
[1766643900858,3.40710352,2940.9,2940.2,3.40710352]
[1766643901058,1.02294441,2940.8,2940.2,3.40710352]
[1766643901359,3.40710352,2940.9,2940.2,3.40710352]
[1766643901559,1.0229546,2940.8,2940.2,3.40710352]
[1766643901760,3.40710352,2940.9,2940.2,3.40710352]
[1766643901963,1.0229546,2940.8,2940.2,3.40710352]
[1766643902162,3.40710352,2940.9,2940.2,3.40710352]
[1766643902361,1.02295681,2940.8,2940.2,3.40710352]
[1766643902564,3.40710352,2940.9,2940.2,3.40710352]
[1766643902753,1.02296641,2940.8,2940.2,3.40710352]
[1766643902953,3.40710352,2940.9,2940.2,3.40710352]
[1766643903164,1.02296637,2940.8,2940.2,3.40710352]
[1766643903361,3.40710352,2940.9,2940.2,3.40710352]
[1766643903562,1.02298045,2940.8,2940.2,3.40710352]
[1766643903862,3.40710352,2940.9,2940.2,3.40710352]
[1766643904051,1.02298045,2940.8,2940.2,3.40710352]
[1766643904251,3.40710352,2940.9,2940.2,3.40710352]
[1766643904449,1.02299785,2940.8,2940.2,3.40710352]
[1766643904657,3.40710352,2940.9,2940.2,3.40710352]
[1766643904862,1.02299785,2940.8,2940.2,3.40710352]
[1766643905161,3.40710352,2940.9,2940.2,3.40710352]
[1766643905361,1.02299792,2940.8,2940.2,3.40710352]
[1766643905564,3.40710352,2940.9,2940.2,3.40710352]
[1766643905758,1.02299792,2940.8,2940.2,3.40710352]
[1766643905963,3.40710352,2940.9,2940.2,3.40710352]
[1766643906263,1.02299791,2940.8,2940.2,3.40710352]
[1766643906462,3.40710352,2940.9,2940.2,3.40710352]
[1766643906764,1.02299802,2940.8,2940.2,3.40710352]
[1766643906958,3.40710352,2940.9,2940.2,3.40710352]
[1766643907258,1.02299803,2940.8,2940.2,3.40710352]
[1766643907458,3.40710352,2940.9,2940.2,3.40710352]
[1766643907658,1.02299821,2940.8,2940.2,3.40710352]
[1766643907963,3.40710352,2940.9,2940.2,3.40710352]
[1766643908262,1.02299821,2940.8,2940.2,3.40710352]
[1766643908459,3.40710352,2940.9,2940.2,3.40710352]
[1766643908660,1.02299845,2940.8,2940.2,3.40710352]
[1766643908863,3.40710352,2940.9,2940.2,3.40710352]
[1766643909058,1.02299849,2940.8,2940.2,3.40710352]
[1766643909264,3.40710352,2940.9,2940.2,3.40710352]
[1766643909457,1.02299881,2940.8,2940.2,3.40710352]
[1766643909654,3.40710352,2940.9,2940.2,3.40710352]
[1766643909952,1.02299881,2940.8,2940.2,3.40710352]
[1766643910149,3.40710352,2940.9,2940.2,3.40710352]
[1766643910353,1.0229992,2940.8,2940.2,3.40710352]
[1766643910649,3.40710352,2940.9,2940.2,3.40710352]
[1766643910853,1.0229992,2940.8,2940.2,3.40710352]
[1766643911053,3.40710352,2940.9,2940.2,3.40710352]
[1766643911254,1.02300059,2940.8,2940.2,3.40710352]
[1766643911454,3.40710352,2940.9,2940.2,3.40710352]
[1766643911655,1.02299917,2940.8,2940.2,3.40710352]
[1766643911857,3.40710352,2940.9,2940.2,3.40710352]
[1766643912056,1.02299917,2940.8,2940.2,3.40710352]
[1766643912255,3.40710352,2940.9,2940.2,3.40710352]
[1766643912455,1.02299968,2940.8,2940.2,3.40710352]
[1766643912653,3.40710352,2940.9,2940.2,3.40710352]
[1766643912856,1.02300193,2940.8,2940.2,3.40710352]
[1766643913064,3.40710352,2940.9,2940.2,3.40710352]
[1766643913266,1.02300334,2940.8,2940.2,3.40710352]
[1766643913466,3.40710352,2940.9,2940.2,3.40710352]
[1766643913765,1.02300264,2940.8,2940.2,3.40710352]